Cogmind - Beta 15 @@@ ROGUE MODE // 2025.09.25 @ 19:29:59 Player: luka.null Result: Destroyed by G-34 Mercenary with Small Laser Performance ------------- Evolutions (0) 0 Regions Visited (1) 200 Robots Destroyed (17) 85 Value Destroyed (314) 314 Prototype IDs (0) 0 Alien Tech Used (0) 0 Bonus (0) 0 TOTAL SCORE: 599 Bonus ------- None Cogmind --------- Core Integrity 0/250 Matter 265/300 Energy 100/100 System Corruption 0% Temperature Cool (6) Movement Core (250) Ox4 Location -10/Materials Parts ------- > --- POWER (1) -------- (None) > --- PROPULSION (2) --- (None) > --- UTILITY (2) ------ Medium Storage Unit > --- WEAPON (2) ------- Maul > --- INVENTORY (10) --- Light Ion Engine Light Ion Engine Small Laser Small Laser Grenade Launcher Peak State ------------ > --- POWER ------------ Light Ion Engine > --- PROPULSION ------- Light Treads Light Treads > --- UTILITY ---------- Heat Sink Small Storage Unit > --- WEAPON ----------- EM Pulse Gun Small Laser > --- INVENTORY -------- Light Ion Engine Small Laser Grenade Launcher [Rating: 7] Favorites ----------- Power Light Ion Engine Engine Light Ion Engine Propulsion Light Treads Treads Light Treads Utility Small Storage Unit Device Heat Sink Storage Small Storage Unit Weapon Small Laser Energy Gun Small Laser Impact Weapon Maul Build | -11 -10 ------- Run | Yrd Mat Slots Evolved . | . . Power . | . . Propulsion . | . . Utility . | . . Weapon . | . . Parts Attached 15 | 6 9 Power 4 | 1 3 Engine 4 | 1 3 Core . | . . Reactor . | . . Propulsion 2 | 2 . Treads 2 | 2 . Leg . | . . Wheel . | . . Hover . | . . Flight . | . . Utility 3 | 1 2 Device 1 | . 1 Storage 2 | 1 1 Processor . | . . Hackware . | . . Protection . | . . Artifact . | . . Weapon 6 | 2 4 Energy Gun 5 | 2 3 Energy Cannon . | . . Ballistic Gun . | . . Ballistic Cannon . | . . Launcher . | . . Special Weapon . | . . Impact Weapon 1 | . 1 Slashing Weapon . | . . Piercing Weapon . | . . Special Melee Weapon . | . . Unidentified Prototypes . | . . Parts Lost 8 | . 8 Power 2 | . 2 Propulsion 2 | . 2 Utility 1 | . 1 Weapon 3 | . 3 Highest Loss Streak 5 | . 5 To Critical Strikes . | . . Average Backups 2 | 1 2 Power 1 | . 1 Propulsion . | . . Utility . | . . Weapon 1 | . 1 Tool/Special . | . . Unused Backups 1 | . 1 Power . | . . Propulsion . | . . Utility . | . . Weapon 1 | . 1 Tool/Special . | . . Average Slot Usage (%) 83 | . 83 Engine 13 | . 13 Treads 25 | . 25 Device 2 | . 2 Storage 14 | . 14 Energy Gun 26 | . 26 Peak Build Rating 7 | 6 7 Average Rating 5 | 5 5 On Entrance 3 | . 6 Naked Turns . | . . Heaviest Build 23 | 11 23 Greatest Support 40 | 40 40 Greatest Overweight (x) 7 | . 7 Average Overweight (x) . | . . Largest Inventory Capacity 10 | 8 10 Average Capacity 8 | 7 8 Most Carried 5 | 2 5 Average Carried 2 | 1 2 Final Capacity 10 | 8 10 Final Carried 5 | 2 5 Class Distribution -------------------- 100% | Mutant Dominant Class ---------------- Mutant | -10/Materials Resources | -11 -10 ----------- Run | Yrd Mat Matter Collected 283 | 240 43 Remotely . | . . Salvage Created 409 | . 409 Parts 25 | . 25 Haulers Intercepted . | . . Recyclers Shooed . | . . Parts Field Recycled . | . . Retrieved Matter . | . . Parts Self-Destructed . | . . Prevented . | . . Kills | -11 -10 ------- Run | Yrd Mat Combat Hostiles Destroyed 15 | . 15 Melee 1 | . 1 Guns 12 | . 12 AOE 2 | . 2 Classes Destroyed 4 | . 4 Worker 1 | . 1 Recycler 1 | . 1 Swarmer 9 | . 9 Grunt 6 | . 6 Best Kill Streak 4 | . 4 Combat Bots Only 3 | . 3 Max Kills in Single Turn 2 | . 2 Gunslinging . | . . Exploded 1 | . 1 Melee 1 | . 1 Uniques/NPCs Destroyed . | . . Combat | -11 -10 -------- Run | Yrd Mat Hostile Shots Fired 130 | . 130 Missed 34 | . 34 Hits 96 | . 96 Projectile 96 | . 96 Damage Taken 1083 | . 1083 Core 261 | . 261 Absorbed by Shields . | . . Core Remaining (%) 100 | 100 . Volleys Fired 44 | . 44 Largest 2 | . 2 Hottest 90 | . 90 Shots Fired 75 | . 75 Gun 75 | . 75 Cannon . | . . Launcher . | . . Special . | . . Kinetic . | . . Thermal 56 | . 56 Explosive . | . . Electromagnetic 19 | . 19 Robot Hit Streak 8 | . 8 Robot Miss Streak 5 | . 5 Penetration Max . | . . Secondary Targets 5 | . 5 Max Gunslinging Chain 1 | . 1 Shots Hit Robots 47 | . 47 Core Hits 23 | 1 22 Critical Kills . | . . Critical Parts Destroyed . | . . Critical Strikes 1 | . 1 Corrupt 1 | . 1 Melee Attacks 2 | . 2 Impact 2 | . 2 Slashing . | . . Piercing . | . . Sneak Attacks . | . . Combat Hostiles . | . . Follow-up Attacks . | . . Damage Inflicted 653 | 9 644 Guns 517 | . 517 Cannons . | . . Explosions 22 | . 22 Melee 86 | . 86 Ramming 28 | 9 19 Kinetic . | . . Thermal 416 | . 416 Explosive . | . . Electromagnetic 123 | . 123 Impact 86 | . 86 Slashing . | . . Piercing . | . . Highest Corruption . | . . Average Corruption . | . . Corruption Purged . | . . Corruption Blocked . | . . Overload Shots . | . . Overflow Damage . | . . Projectiles . | . . Explosions . | . . Melee . | . . Knockbacks 2 | . 2 Impact 2 | . 2 Kinetic . | . . Secondary . | . . Self-Inflicted Damage . | . . Shots . | . . Rammed 13 | 1 12 Targets Rammed 15 | 1 14 Kicked . | . . Crushed 2 | . 2 Highest Temperature 274 | . 274 Average Temperature 76 | . 76 Received Heat Transfer 444 | . 444 Effects 2 | . 2 Energy Bleed 1 | . 1 Interference 1 | . 1 Siege Activations . | . . Martial Activations . | . . Shielding Activations . | . . Robots Disrupted . | . . Combat Hostiles . | . . Robots Corrupted . | . . Combat Hostiles . | . . Parts Fried . | . . Impact Corruptions . | . . Robots Melted . | . . Combat Hostiles . | . . Parts Melted . | . . Heat Transferred 950 | . 950 Parts Sabotaged . | . . Parts Stolen . | . . Parts Stripped . | . . Power Chain Reactions 1 | . 1 Alert | -11 -10 ------- Run | Yrd Mat Maximum Alert Level . | . . Low Security (%) 100 | 100 100 Level 1 . | . . Level 2 . | . . Level 3 . | . . Level 4 . | . . Level 5 . | . . High Security . | . . Max Security . | . . Peak Influence 111 | . 111 Initial . | . . Average 28 | . 32 Influence Increases 383 | . 383 Destroy 0b10 Robot/C 300 | . 300 Destroy 0b10 Robot/NC 10 | . 10 Destroy Leader 60 | . 60 Successful Hack 10 | . 10 Destroy Structure 3 | . 3 Influence Decreases 372 | . 372 Time Decay 292 | . 292 Lost Part 80 | . 80 Squads Dispatched 4 | . 4 Investigation 1 | . 1 Extermination . | . . Reinforcement 3 | . 3 Assault . | . . Garrison . | . . Intercept . | . . Searches Triggered . | . . Construction Impeded . | . . Haulers Reinforced . | . . Active Scanning Responses . | . . Cargo Convoy Interrupts . | . . Stealth | -11 -10 --------- Run | Yrd Mat Distress Signals 1 | . 1 Communications Jammed . | . . Distress Signals . | . . Times Spotted 24 | . 24 Peak Tracking Total 3 | . 3 Tactical Retreats . | . . Traps | -11 -10 ------- Run | Yrd Mat Traps Triggered . | . . Indirectly . | . . Trap Hack Attempts . | . . Triggered . | . . Disarmed . | . . Reprogrammed . | . . Reused . | . . Traps Extracted . | . . Installed . | . . Triggered . | . . Machines | -11 -10 ---------- Run | Yrd Mat Machines Disabled . | . . Max in Single Turn . | . . Machines Repaired . | . . Machines Dismantled . | . . Machines Sabotaged . | . . Overloaded Fab Kills . | . . Hacking | -11 -10 --------- Run | Yrd Mat Machines Accessed 4 | . 4 Terminals 3 | . 3 Fabricators . | . . Repair Stations . | . . Recycling Units 1 | . 1 Scanalyzers . | . . Garrison Access . | . . Total Hacks 10 | . 10 Successful 7 | . 7 Failed 3 | . 3 Catastrophic . | . . Database Lockouts . | . . Manual 6 | . 6 Terminals 9 | . 9 Fabricators . | . . Repair Stations . | . . Recycling Units 1 | . 1 Scanalyzers . | . . Garrison Access . | . . Terminal Hacks 4 | . 4 Robot Analysis 1 | . 1 Locate Traps 1 | . 1 Zone Layout 2 | . 2 Fabricator Hacks . | . . Repair Station Hacks . | . . Recycling Unit Hacks 1 | . 1 Report Inventory 1 | . 1 Scanalyzer . | . . Garrison Access Hacks . | . . Unauthorized Hacks 2 | . 2 Terminals 2 | . 2 Botnet 2 | . 2 Fabricators . | . . Repair Stations . | . . Recycling Units . | . . Scanalyzers . | . . Garrison Access . | . . Data Cores Recovered . | . . Used . | . . Hacking Detections 3 | . 3 Full Trace Events 1 | . 1 Feedback Events . | . . Feedback Blocked . | . . Robot Schematics Acquired . | . . Robots Built . | . . Authchips . | . . Time . | . . Total Robot Build Rating . | . . Part Schematics Acquired . | . . Parts Built . | . . Authchips . | . . Time . | . . Total Part Build Rating . | . . Parts Repaired . | . . Time . | . . Parts Recycled . | . . Recycled Matter . | . . Retrieved Matter . | . . Retrieved Components . | . . Parts Scanalyzed . | . . Part Schematics Acquired . | . . Parts Damaged . | . . Bothacking | -11 -10 ------------ Run | Yrd Mat Used RIF Installer . | . . Robots Hacked . | . . Non-combat . | . . Combat . | . . Robot Hacks Applied . | . . Relay Couplers Released . | . . Fabnet Peak Effective % . | . . Robots Rewired . | . . Allies Hacked . | . . Hacks Repelled . | . . Allies | -11 -10 -------- Run | Yrd Mat Total Allies . | . . Largest Group . | . . Highest-Rated Group . | . . Highest-Rated Ally . | . . Total Orders . | . . Ally Attacks . | . . Total Damage . | . . Kills . | . . Allies Corrupted . | . . Allies Melted . | . . Intel | -11 -10 ------- Run | Yrd Mat Active Infowar (turns) . | . . Robot Analysis Total 1 | . 1 Derelict Logs Recovered . | . . Drone Launches . | . . Drone Recoveries . | . . Exploration | -11 -10 ------------- Run | Yrd Mat Turns Passed 1382 | 154 1228 Spaces Moved 726 | 92 634 Core 17 | 4 13 Treads 709 | 88 621 Legs . | . . Wheels . | . . Hover . | . . Flight . | . . Fastest Speed 50 | 50 160 Average Speed 162 | 155 163 Slowest Speed 400 | 160 400 Overloaded Moves . | . . Propulsion Burnouts . | . . Robots Hopped . | . . Potential Cave-ins . | . . Cave-ins Triggered . | . . Exploration Rate (%) 32 | 5 60 Regions Visited 1 Branch Regions . Pre-discovered Areas . | . . Known Exits Taken . | . . Unknown Exits Taken 1 | 1 . Scrap Searched . | . . Spaces Dug . | . . Terrain Destroyed 2 | . 2 Melee . | . . Projectile . | . . AOE 2 | . 2 Terrain Rammed . | . . Walls Destroyed . | . . Machines Disabled . | . . Actions | -11 -10 --------- Run | Yrd Mat Total 834 | 100 734 Wait 26 | . 26 Move 725 | 91 634 Hop . | . . Pick Up 5 | 2 3 Fast Attach 9 | 6 3 Attach 2 | . 2 Detach 1 | . 1 Swap 4 | . 4 Drop 1 | . 1 Fire 44 | . 44 Melee 2 | . 2 Ram . | . . Kick . | . . Crush 15 | 1 14 Escape Stasis . | . . Rewire . | . . Trap . | . . Miscellaneous . | . . Route ------- -11/Scrapyard -10/Materials (discovered 2 exits: [*Mat] / [*Min]) History --------- Turn | Location | Event 10 | -11/Scrapyard | Discovered new exit (range 15) 155 | -11/Scrapyard | Entered Materials 308 | -10/Materials | Build established: Mutant 782 | -10/Materials | Discovered new exit (range 10) 1205 | -10/Materials | Discovered new exit (range 11) 1345 | -10/Materials | Core integrity fell below 50% 1359 | -10/Materials | Core integrity fell below 20% 1383 | -10/Materials | Destroyed by G-34 Mercenary with Small Laser Last Messages --------------- 01325_ Lgt. Treads destroyed. 01331_ R-06 Scavenger destroyed. 01333_ K-01 Serf collects debris. 01334_ K-01 Serf cleans the Purification Channel. 01337_ K-01 Serf collects debris. 01340_ EM Shotgun destroyed. 01341_ K-01 Serf collects debris. 01341_ K-01 Serf cleans the Purification Channel. 01344_ K-01 Serf collects debris. 01346_ K-01 Serf cleans the Purification Channel. 01348_ EM Shotgun destroyed. 01349_ K-01 Serf cleans the Purification Channel. 01349_ Acquired Maul. 01360_ K-01 Serf cleans the Purification Channel. 01368_ K-01 Serf collects debris. 01374_ K-01 Serf cleans the Purification Channel. 01375_ Imp. Ion Engine destroyed. 01375_ K-01 Serf collects debris. 01377_ G-34 Mercenary knocked back. 01378_ K-01 Serf cleans the Purification Channel. Map ----- +----------------------------------------------------+ | #####?????????????????????##"|||"##?????? | | # #?????????????????????#"" ""#?????? | | #= #?????????????????????# #?????? | | # #??????????????######?# < #?????? | | + #????????????### ## #?????? | | #% #????????????# # #?????? | | # #????????????# # # ##?????? | | # #???????????## ## ##??????? | | # #???????????# ### ######### | | # #???????????## # # ##! # | | # #???????????# # # ## # | | + ########?????# # # ## """ # | | # #?????# ###+## # """ # | | # ############ = # """ # | | % + # | | ##+###################% " # """ # | | """ #?????????# % ^""" # """ # | | "R" #?????????# """ ### """ # | | " " #?????????# """ #?# # | | """ #?????????# "" #?######## | | """ #?????????# """ #####????? | | """ #?????????# "" #????? | | % #?????????# """k [[#????? | | ############?????????# ^g" * #????? | | #?????#####??????????# % k **#????? | | #?????# ??????????# g@ * /#????? | | #?????# ??????????# " //#????? | | #?????# ?????# """ #####????? | | #?????# ??? + """ #????????? | | #?????# """??? # """ #????????? | | #?????# """?????###+## "" #????????? | | #?????# """??????????# """ #????????? | | #?????# ??????????# w "" #????????? | | #????????????????????# """ #????????? | | ?????????????????????# " #????????? | | ????????#########????# ? #????????? | | ######### #????# #????????? | | ## #????# ????????? | | ## #????# ????????? | | """ ## """ #????# o ? ????????? | | """ ## """ #?????? ?? ????????? | | """ ## """ #???????????????????????? | | ## #???????????????????????? | | # !#???????????????????????? | | """ + "Y" #???????????????????????? | | """ # """ #???????????????????????? | | """ # #???????????????????????? | | #########???????????????????????? | | #??????????????????????????????? | | """ #??????????????????????????????? | +----------------------------------------------------+ Best States ------------- Heat Dissipation 35 Energy Generation 12 Energy Capacity 265 Matter Stores 300 Matter Capacity 300 Sight Range 16 Terrain Scan Density 10 Evasion (%) 40 Recoil Reduction 2 Item Schematics ----------------- None Robot Schematics ------------------ None Fabricated ------------ Nothing Repaired ---------- Nothing Alien Tech Used ----------------- None Achievements -------------- None Challenges ------------ None Game ------ Seed AccelerationGravitonUnit Manual? 0 Play Time 00:16:11 Cumulative 14.5 hours Start 2025.09.24 @ 21:49:58 End 2025.09.25 @ 19:29:59 Sessions 4 Manual Loads 0 Difficulty Rogue Special Mode None Game No. 15 Rogue 12 Adventurer 3 Explorer 0 Win Type - Total 0 Types 0/0/0/0/0/0/0/0/0/0 Lore% 15 Gallery% 11 Achievement% 14 Wizard Run 0 Options --------- Layout 1 ASCII 0 Keyboard 0 Movement Vi Keybinds 0 Fullscreen 0 Font 20/Terminus Map View 64x48 Zoom Use 0% Tactical HUD 1 Map Filters NONE Filters NONE Steam 1 RUN: 7ed159e4-4c14-4f9c-8fa5-87b2d725207c